bitfinex/quotes_ETHUSD_20250815
["timestamp","ask_amount","ask_price","bid_price","bid_amount"]
[1755241492550,4.265,4645.9,4645.7,2.15252688]
[1755241492881,0.4294,4645.8,4645.3,2.15268364]
[1755241493047,0.4294,4645.7,4645.4,0.55]
[1755241493373,5.165,4646.7,4645.7,0.55]
[1755241493677,3.34,4646.6,4646.5,2.15211594]
[1755241494177,3.341,4646.6,4646.5,2.15215753]
[1755241494339,3.7704,4646.6,4646.4,2.15220144]
[1755241494544,3.8366,4646.6,4646.4,2.15220144]
[1755241494773,0.4294,4646.5,4646.4,2.15220144]
[1755241495077,0.4294,4646.5,4645.5,2.15258819]
[1755241495078,5.165,4646.7,4645.9,0.55]
[1755241495260,0.4294,4647.9,4646.3,0.55]
[1755241495573,3.341,4647.8,4647.5,2.15166085]
[1755241495868,0.925,4647.7,4647.6,2.15162783]
[1755241496074,0.925,4647.7,4647.4,2.1517039]
[1755241496274,0.925,4647.6,4647.5,2.15169445]
[1755241497308,5.168,4648.5,4647.6,0.55]
[1755241497465,3.343,4648.4,4647.7,0.55]
[1755241497651,3.343,4648.4,4648.2,2.15135484]
[1755241497856,0.925,4648.3,4647.6,0.55]
[1755241498056,0.4294,4648.2,4647.6,2.15163516]
[1755241498300,0.1072,4648.1,4647.4,2.2588945]
[1755241498544,0.925,4648.2,4646.7,2.15205417]
[1755241498795,0.1072,4647.5,4647.1,2.15187744]
[1755241499000,0.1072,4647.5,4646.8,0.108]
[1755241499001,0.1072,4647.5,4646.8,2.25999818]
[1755241499170,4.269,4647.4,4647.1,2.15186179]
[1755241499369,0.925,4647.3,4647.0,2.15192216]
[1755241499698,0.925,4647.2,4647.0,2.15192216]
[1755241499877,0.925,4647.2,4646.8,0.108]
[1755241500057,3.344,4647.4,4647.1,2.15187966]
[1755241500252,0.1072,4647.5,4647.3,2.15178613]
[1755241500459,3.343,4647.4,4647.3,2.15178613]
[1755241500682,4.268,4647.4,4647.3,2.15178613]
[1755241500986,0.5366,4648.4,4647.4,0.55]
[1755241501189,3.343,4648.3,4648.2,2.15137042]
[1755241501490,0.1072,4648.4,4648.3,2.70132414]
[1755241501984,3.344,4648.8,4648.7,2.15113902]
[1755241502554,0.5366,4649.2,4648.7,2.15113902]
[1755241502756,3.343,4649.1,4649.0,2.15100021]
[1755241502953,3.343,4649.2,4649.1,0.6572]
[1755241503386,0.1072,4649.8,4649.1,0.6572]
[1755241503561,3.342,4649.5,4649.4,2.15081515]
[1755241503954,0.4956,4649.9,4649.6,2.15070585]
[1755241504160,0.4314,4650.0,4649.7,2.15067638]
[1755241504161,3.342,4649.8,4649.7,2.15067638]
[1755241504580,0.4314,4650.0,4649.9,2.70058388]
[1755241504581,0.002,4650.0,4649.9,2.70058388]
[1755241504821,0.1072,4651.0,4650.4,2.70035265]
[1755241504993,3.344,4651.0,4650.4,2.70035265]
[1755241505294,3.344,4651.0,4650.4,2.80755265]
[1755241507009,0.4294,4650.9,4650.4,2.80755265]
[1755241507176,0.927,4650.5,4650.4,0.1072]
[1755241507900,1.0342,4650.5,4649.8,2.15062446]
[1755241508102,3.78356281,4650.4,4649.6,2.25790465]
[1755241508269,0.1072,4650.2,4649.6,0.1072]
[1755241508469,0.4294,4650.1,4649.6,0.1072]
[1755241508702,0.925,4650.0,4649.6,0.1072]
[1755241508904,0.925,4649.9,4649.6,0.1072]
[1755241509204,4.268,4649.8,4649.6,0.1072]
[1755241509535,4.268,4649.8,4648.5,3.0]
[1755241509536,0.925,4649.7,4649.3,0.1072]
[1755241509698,0.925,4649.7,4649.4,2.15081515]
[1755241509897,0.925,4649.6,4649.3,0.1072]
[1755241510145,0.925,4649.6,4649.0,0.1072]
[1755241510319,0.4294,4649.5,4648.8,0.1072]
[1755241510640,0.4956,4649.4,4648.8,0.1072]
[1755241510999,0.1072,4649.2,4648.7,2.15112936]
[1755241511213,0.1072,4649.2,4648.5,0.1072]
[1755241511214,4.267,4649.1,4648.5,0.1072]
[1755241511414,0.4294,4649.0,4648.5,0.1072]
[1755241511699,0.925,4648.9,4648.5,0.1072]
[1755241512230,3.342,4649.1,4648.2,2.25856052]
[1755241512231,1.0322,4648.8,4648.2,2.25856052]
[1755241513231,1.0322,4648.8,4648.3,2.15131188]
[1755241513439,1.0322,4648.8,4648.2,2.25856513]
[1755241513605,1.0322,4648.8,4648.4,2.15127785]
[1755241513809,0.4294,4648.7,4648.4,2.15127785]
[1755241514011,3.34,4648.6,4648.5,2.15123158]
[1755241514542,3.34,4648.6,4648.4,2.15126645]
[1755241515142,0.1072,4648.8,4648.4,2.15126645]
[1755241515340,0.5366,4648.8,4648.4,2.15126645]
[1755241515638,3.7684,4648.7,4648.2,0.1072]
[1755241515946,3.7684,4648.7,4643.9,1.03839137]
[1755241515947,0.93616281,4648.6,4647.0,3.339]
[1755241516164,0.93616281,4648.6,4646.7,0.1781]
[1755241516165,1.0322,4648.5,4647.8,0.1072]
[1755241516830,1.0322,4648.5,4647.9,2.15150928]
[1755241517357,1.0322,4648.5,4647.8,0.1072]
[1755241517522,3.7664,4648.4,4647.6,2.15163518]
[1755241517718,0.1072,4648.2,4647.7,2.15159196]
[1755241517944,0.925,4648.1,4647.7,2.15159196]
[1755241518137,0.925,4648.1,4647.6,0.1072]
[1755241518448,0.925,4648.0,4647.7,2.15159564]
[1755241518658,0.925,4648.0,4647.6,0.1072]
[1755241518862,3.338,4648.1,4648.0,2.15145668]
[1755241519027,0.4956,4648.9,4647.7,0.55]
[1755241519222,0.1072,4648.5,4648.0,2.15142099]
[1755241519631,1.0322,4648.5,4648.1,2.15140436]
[1755241519928,1.0322,4648.5,4648.2,2.15134702]
[1755241520860,1.0322,4648.5,4648.2,2.15136943]
[1755241521055,1.0322,4648.5,4648.0,2.15141908]
[1755241521268,1.0322,4648.5,4648.1,2.15140235]
[1755241521469,0.4294,4648.4,4648.1,2.15140235]
[1755241521669,0.6028,4648.5,4648.2,2.15135606]
[1755241521870,1.0688,4648.5,4648.1,2.1514149]
[1755241522080,1.0688,4648.5,4648.2,2.15136632]
[1755241522376,0.1072,4648.5,4648.4,2.15127785]
[1755241522673,3.4422,4648.9,4648.6,2.1511853]
[1755241522871,3.4422,4648.9,4648.4,0.57151277]
[1755241523073,0.4967,4649.6,4648.4,0.57151277]
[1755241523074,0.002,4649.8,4648.7,0.55]
[1755241523379,3.336,4649.7,4649.3,0.55]
[1755241523561,3.336,4649.7,4649.2,0.1072]
[1755241523562,0.002,4649.8,4649.4,2.15081515]
[1755241523791,0.002,4649.8,4649.2,0.1072]
[1755241523792,0.002,4649.8,4649.7,2.15067638]
[1755241525003,0.002,4649.8,4649.6,2.15072147]
[1755241525173,0.002,4649.8,4649.7,2.15067638]
[1755241526899,0.9647,4649.8,4649.3,0.55]
[1755241527107,3.8,4649.7,4649.3,0.55]
[1755241527510,0.002,4649.8,4649.7,2.15067638]
[1755241531720,0.002,4649.8,4649.7,2.70067638]
[1755241531903,0.002,4649.8,4649.7,3.65319961]
[1755241532303,0.002,4649.8,4649.7,3.76039961]
[1755241532888,0.002,4649.8,4649.7,3.32369961]
[1755241533571,0.002,4649.8,4649.7,3.34520637]
[1755241534616,0.002,4649.8,4649.7,3.32369961]
[1755241536499,0.002,4649.8,4649.7,2.25787638]
[1755241536905,0.002,4649.8,4649.7,2.80787638]
[1755241543293,0.002,4649.8,4649.7,7.05787638]
[1755241547037,0.002,4649.8,4649.7,2.80787638]
[1755241549017,0.002,4649.8,4649.7,2.82938314]
[1755241549211,0.002,4649.8,4649.7,3.65989633]
[1755241549908,0.002,4649.8,4649.7,3.63838957]
[1755241550639,0.002,4649.8,4649.7,3.65989633]
[1755241551013,0.002,4649.8,4649.7,3.63838957]
[1755241553761,1e-08,4649.8,4649.7,6.65989633]
[1755241553911,0.002,4650.6,4650.5,5.70030641]
[1755241554111,0.002,4650.6,4650.5,9.80437475]
[1755241557460,1e-08,4650.6,4650.5,9.80437475]
[1755241557810,1e-08,4650.6,4650.5,9.98247475]
[1755241558010,1e-08,4650.6,4650.5,10.24107475]
[1755241558207,0.002,4651.0,4650.9,2.70012148]
[1755241558421,0.002,4651.0,4650.9,9.80115291]
[1755241559257,1e-08,4651.0,4650.9,9.80115291]
[1755241559467,1e-08,4651.0,4650.9,2.93515291]
[1755241559964,0.92640001,4651.0,4650.9,3.48515291]
[1755241561867,0.92640001,4651.0,4650.9,6.80015291]
[1755241562368,1e-08,4651.0,4650.9,6.80015291]
[1755241562867,0.46650001,4651.0,4650.9,6.80015291]
[1755241563178,1e-08,4651.0,4650.9,6.80015291]
[1755241563783,0.002,4651.6,4651.0,2.70007525]
[1755241563937,0.002,4651.6,4651.5,2.69984413]
[1755241564139,0.002,4651.6,4651.5,6.12104413]
[1755241564539,0.9284,4651.6,4651.5,6.12104413]
[1755241565866,0.9284,4651.6,4651.5,2.25704413]
[1755241566672,0.002,4651.6,4651.5,6.56174018]
[1755241567071,0.4685,4651.6,4651.5,6.56174018]
[1755241567368,0.002,4651.6,4651.5,6.56174018]
[1755241568359,0.4685,4651.6,4651.5,6.56174018]
[1755241568540,0.9284,4651.6,4651.5,3.24774018]
[1755241568742,0.9284,4651.6,4651.5,6.12304413]
[1755241569146,0.9284,4651.6,4651.5,6.12204413]
[1755241571081,0.9284,4651.6,4651.5,2.80704413]
[1755241574284,0.002,4651.6,4651.5,2.80704413]
[1755241574460,0.002,4652.0,4651.9,2.69965927]
[1755241574775,0.002,4652.0,4651.9,2.72115586]
[1755241575086,0.002,4652.0,4651.9,2.80685927]
[1755241577774,0.9284,4652.0,4651.9,6.11785927]
[1755241577974,0.4685,4652.0,4651.9,6.11785927]
[1755241578180,0.002,4652.0,4651.9,6.11785927]
[1755241578500,0.002,4652.0,4651.9,7.00583865]
[1755241578656,1e-08,4652.1,4652.0,2.69961306]
[1755241578851,0.002,4653.0,4652.9,2.69919727]
[1755241579167,0.002,4653.0,4652.9,6.11939727]
[1755241580105,0.002,4653.1,4653.0,2.69915108]
[1755241580257,0.002,4653.1,4653.0,3.59177743]
[1755241580460,0.002,4653.1,4653.0,3.57028592]
[1755241580760,1e-08,4653.1,4653.0,4.02847743]
[1755241580954,1e-08,4653.5,4653.4,2.69896634]
[1755241581159,1e-08,4653.5,4653.4,6.60396885]
[1755241582156,1e-08,4653.5,4653.4,6.60496885]
[1755241582380,0.94290001,4653.5,4653.4,2.25616634]
[1755241582586,0.94290001,4653.5,4653.4,5.57116634]
[1755241582790,0.94290001,4653.5,4653.4,0.1072]
[1755241582964,0.94290001,4653.5,4652.7,2.14928319]
[1755241583165,0.94290001,4653.5,4652.8,0.1072]
[1755241583166,0.95406281,4653.4,4652.8,0.1072]
[1755241583488,0.1072,4653.2,4652.7,2.14927845]
[1755241583680,0.1072,4653.2,4652.8,2.14923472]
[1755241583878,0.9429,4653.1,4652.8,2.14923472]
[1755241584080,0.9429,4653.0,4652.5,0.1072]
[1755241584260,0.9429,4652.9,4652.0,2.14960377]
[1755241584591,0.9429,4652.8,4652.3,2.25663168]
[1755241584756,0.9429,4652.7,4652.3,2.25663168]
[1755241584957,0.9429,4652.6,4652.3,2.25663168]
[1755241585154,0.9429,4652.5,4652.4,2.14942825]
[1755241586992,0.9429,4652.5,4652.3,2.25666853]
[1755241587194,2.2562605,4653.2,4652.3,2.25666853]
[1755241587355,0.9429,4652.4,4652.3,0.1072]
[1755241588459,0.9429,4652.4,4650.9,0.21511595]
[1755241588660,4.06126281,4652.3,4651.6,0.1072]
[1755241588881,0.9429,4652.2,4651.6,0.1072]
[1755241589293,0.1072,4651.9,4651.3,0.1072]
[1755241589521,0.9429,4651.8,4651.3,0.1072]
[1755241589809,0.4711,4651.7,4651.3,0.1072]
[1755241589968,0.4711,4651.7,4651.4,2.14989035]
[1755241590168,0.4711,4651.7,4651.3,0.1072]
[1755241590792,0.4711,4651.7,4651.5,2.1498379]
[1755241590993,0.4711,4651.7,4651.4,2.1498837]
[1755241591202,0.4711,4651.7,4651.4,2.14989035]
[1755241591574,0.9429,4651.7,4651.5,2.14984065]
[1755241591989,0.9429,4651.7,4651.4,2.14988941]
[1755241592170,0.9429,4651.6,4651.3,0.1072]
[1755241592366,0.9429,4651.5,4650.9,2.15011495]
[1755241592567,0.9429,4651.4,4650.9,2.15011495]
[1755241592770,0.9429,4651.3,4650.8,5.464133]
[1755241592989,0.9429,4651.2,4650.8,5.464133]
[1755241593191,2.14976622,4651.7,4650.8,5.46416583]
[1755241593390,7.093769,4654.8,4650.9,0.1072]
[1755241593391,0.9429,4651.1,4650.9,0.1072]
[1755241593701,0.9429,4651.0,4650.8,0.001]
[1755241594101,0.11006243,4652.8,4650.8,0.001]
[1755241594102,0.4711,4652.6,4651.2,4.2999656]
[1755241594286,0.4711,4652.6,4652.5,2.14938205]
[1755241594688,0.002,4653.4,4652.4,3.315]
[1755241594889,0.002,4653.4,4651.9,2.1496591]
[1755241594890,0.002,4653.4,4652.6,0.55]
[1755241595102,0.002,4653.4,4652.6,0.9366]
[1755241595870,0.002,4653.4,4652.7,2.14928965]
[1755241596103,0.002,4653.4,4652.6,0.9366]
[1755241596673,0.002,4653.4,4653.2,2.14901366]
[1755241597078,0.4711,4653.3,4653.2,2.14901366]
[1755241597612,0.002,4653.4,4653.3,2.14901252]
[1755241597977,0.4731,4653.4,4653.3,2.14901252]
[1755241598173,0.002,4653.4,4653.3,2.14901252]
[1755241598420,0.002,4653.4,4653.3,2.60031269]
[1755241598572,0.002,4653.4,4653.3,6.46531269]
[1755241598902,0.002,4653.4,4653.3,6.44382257]
[1755241600193,0.002,4653.4,4653.3,3.12882257]
[1755241600381,0.002,4653.4,4653.3,6.44282257]
[1755241603187,1e-08,4653.4,4653.3,6.44282257]
[1755241603594,1e-08,4653.4,4653.3,6.87952257]
[1755241604197,1e-08,4653.4,4653.3,6.98672257]
[1755241604618,1e-08,4653.4,4653.3,6.55002257]
[1755241605016,1e-08,4653.4,4653.3,6.54702257]
[1755241605793,0.47110001,4653.4,4653.3,5.99702257]
[1755241605998,0.47110001,4653.4,4653.3,6.11721252]
[1755241606197,1e-08,4653.4,4653.3,5.56721252]
[1755241606401,1e-08,4653.4,4653.3,6.11721252]
[1755241607825,1e-08,4653.4,4653.3,6.01001252]
[1755241607988,1e-08,4653.4,4653.3,6.11721252]
[1755241608194,1e-08,4653.4,4653.3,6.94384257]
[1755241610542,1e-08,4654.0,4653.8,0.55]
[1755241610743,1e-08,4654.3,4654.2,2.14859696]
[1755241611042,1e-08,4654.3,4654.2,9.00959696]
[1755241611350,1e-08,4654.3,4654.2,10.13597421]
[1755241611505,1e-08,4654.3,4654.2,10.24317421]
[1755241613915,1e-08,4654.4,4654.3,2.1485508]
[1755241614152,0.4718,4655.8,4654.8,2.69832001]
[1755241614153,1e-08,4654.9,4654.8,2.69832001]
[1755241614456,1e-08,4654.9,4654.8,6.67567465]
[1755241614643,1e-08,4654.9,4654.8,9.65419145]
[1755241614843,1e-08,4654.9,4654.8,10.09089145]
[1755241615053,1e-08,4654.9,4654.8,9.65419145]
[1755241617050,1e-08,4654.9,4654.8,10.09089145]
[1755241619440,0.4574,4656.5,4655.3,0.55]
[1755241619645,0.4574,4656.5,4656.4,2.69758182]
[1755241619846,0.9207,4656.5,4656.4,6.11278182]
[1755241622446,0.4574,4656.5,4656.4,6.11078182]
[1755241622637,0.9207,4656.5,4656.4,6.11078182]
[1755241623459,0.9207,4656.5,4656.4,6.93662541]
[1755241623837,0.4574,4656.5,4656.4,6.93662541]
[1755241624637,0.4633,4656.9,4656.8,2.69739735]
[1755241624638,0.9207,4656.9,4656.8,2.69739735]
[1755241624838,0.9207,4656.9,4656.8,6.00139735]
[1755241625037,0.9207,4656.9,4656.8,2.80459735]
[1755241625244,0.9207,4656.9,4656.8,6.10859735]
[1755241625834,0.9207,4656.9,4656.8,0.1072]
[1755241626030,0.9207,4656.9,4656.8,2.25459735]
[1755241626355,0.9207,4656.9,4656.8,5.55859735]
[1755241627570,0.9207,4656.9,4656.8,0.1072]
[1755241627831,0.9207,4656.9,4656.6,5.45047148]
[1755241628081,0.9207,4656.8,4656.5,0.1072]
[1755241628571,0.9207,4656.7,4656.5,0.1072]
[1755241628770,0.1072,4657.1,4656.5,2.25473361]
[1755241628980,0.9207,4656.6,4656.5,2.25473361]
[1755241629177,0.9207,4656.6,4656.5,0.1072]
[1755241629376,0.9207,4656.6,4656.5,2.2547357]
[1755241630142,0.4574,4657.0,4656.9,2.1473496]
[1755241630342,0.9207,4657.0,4656.9,6.1065496]
[1755241630576,0.1072,4657.9,4656.9,6.1065496]
[1755241630577,0.4574,4657.5,4657.0,0.55]
[1755241630891,0.1072,4658.1,4657.5,2.14707461]
[1755241631041,0.1072,4658.1,4657.5,5.45007461]
[1755241631358,0.9207,4658.0,4657.5,5.45007461]
[1755241631559,0.9207,4657.9,4657.6,2.14702618]
[1755241631789,0.4574,4657.8,4657.7,5.47145223]
[1755241631991,0.4574,4657.8,4657.7,5.44998241]
[1755241632280,0.46027511,4658.5,4657.7,3.4102]
[1755241632476,0.4574,4658.2,4658.1,2.14679805]
[1755241632807,0.4574,4658.2,4658.1,5.55699805]
[1755241633283,0.9207,4658.2,4658.1,5.55699805]
[1755241633484,0.9207,4658.2,4658.1,0.1072]
[1755241633847,0.9207,4658.2,4658.1,2.25399805]
[1755241634249,0.9207,4658.2,4658.1,0.1072]
[1755241634979,0.9207,4658.2,4658.1,2.25399805]
[1755241635566,0.4633,4658.6,4658.5,2.14661371]
[1755241635753,0.9207,4658.6,4658.5,2.14661371]
[1755241636080,0.9207,4658.6,4658.5,2.25381371]
[1755241637178,0.9207,4658.6,4658.3,2.14669041]
[1755241637406,0.9207,4658.5,4658.3,2.14669041]
[1755241637604,0.1072,4658.8,4658.3,2.14669041]
[1755241637757,0.9207,4658.4,4658.2,5.44874849]
[1755241637955,0.73597852,4659.1,4656.9,4.25]
[1755241637956,0.9207,4658.3,4656.9,4.25]
[1755241638164,1.39238178,4658.2,4657.7,2.25416324]
[1755241638387,1.38144436,4658.1,4657.7,0.1072]
[1755241638590,0.1072,4658.4,4657.9,2.14688201]
[1755241638765,0.9207,4658.0,4657.9,2.14688201]
[1755241639471,0.46099747,4658.0,4657.9,2.14688201]
[1755241641690,1.38169747,4658.0,4657.7,0.1072]
[1755241641986,0.57484729,4658.3,4657.9,2.14689022]
[1755241642177,0.46145068,4658.2,4658.0,2.14683507]
[1755241642379,0.46145068,4658.1,4658.0,2.14683507]
[1755241642553,1.37445068,4658.1,4657.7,3.4102]
[1755241642757,1.37445068,4658.0,4657.9,2.14689022]
[1755241644168,1.37445068,4658.0,4657.7,3.4102]
[1755241644369,1.37445068,4657.9,4657.8,2.14693632]
[1755241646419,1.94929797,4657.9,4657.8,2.14693632]
[1755241647766,1.37445068,4657.9,4657.8,2.14693632]
[1755241648596,0.46145068,4657.9,4657.8,2.14693632]
[1755241649457,0.46145068,4657.9,4657.8,3.46715061]
[1755241649659,0.57484729,4658.7,4658.5,2.14661371]
[1755241649863,0.46430099,4658.6,4658.5,5.44461371]
[1755241653500,0.002,4658.6,4658.5,5.44461371]
[1755241654410,0.002,4658.6,4658.4,2.25385979]
[1755241654411,0.915,4658.6,4658.4,0.1072]
[1755241654573,1.0202,4658.5,4657.9,3.297]
[1755241654910,0.913,4658.4,4658.0,2.14683389]
[1755241655206,0.913,4658.3,4658.1,2.14679302]
[1755241655423,0.913,4658.2,4658.1,2.14679302]
[1755241656380,0.913,4658.2,4658.0,2.14683689]
[1755241656627,0.913,4658.1,4657.9,2.14688783]
[1755241656926,0.913,4658.0,4657.9,2.14688783]
[1755241662114,0.4284,4658.4,4657.8,0.1072]
[1755241662414,0.1072,4658.5,4657.9,3.294]
[1755241662914,0.4284,4658.4,4658.0,0.02146844]
[1755241663117,0.1072,4658.5,4658.1,5.43979805]
[1755241663416,0.4284,4658.5,4658.2,0.1072]
[1755241663598,0.4284,4658.5,4658.4,2.14665979]
[1755241663916,0.4284,4658.5,4658.2,2.25394689]
[1755241663917,0.4284,4658.5,4658.3,2.14670184]
[1755241664116,0.4846,4658.5,4658.3,2.14670184]
[1755241664290,0.4284,4658.4,4658.3,2.14670184]
[1755241664495,0.913,4658.4,4658.2,0.1072]
[1755241664694,0.913,4658.3,4658.1,2.14679035]
[1755241664897,0.1072,4658.5,4658.2,2.14675196]
[1755241665292,0.1072,4658.5,4658.0,3.293]
[1755241665293,0.1072,4658.5,4658.3,2.14670122]
[1755241665499,0.913,4658.4,4658.3,2.14670122]
[1755241666586,0.1072,4658.5,4658.0,3.293]
[1755241666783,0.4284,4658.4,4658.2,2.14670962]
[1755241666988,0.4284,4658.4,4658.1,2.14679805]
[1755241667308,0.4284,4658.4,4658.3,2.14670587]
[1755241667509,0.002,4658.6,4658.1,2.14679805]
[1755241667723,0.002,4658.6,4658.4,2.14662576]
[1755241668424,0.002,4658.6,4658.5,2.14661371]
[1755241669122,0.4304,4658.6,4658.5,2.14661371]
[1755241670910,0.002,4658.6,4658.5,2.14661371]
[1755241672701,0.002,4658.6,4658.5,6.20686442]
[1755241677554,0.002,4658.6,4658.5,2.91586442]
[1755241677716,0.9417,4658.6,4658.5,2.14661371]
[1755241679938,0.4747,4658.6,4658.4,0.1072]
[1755241680126,0.9397,4658.5,4657.9,3.288]
[1755241680330,0.9397,4658.4,4658.0,2.14684413]
[1755241680530,0.9397,4658.3,4658.0,2.14684413]
[1755241680707,0.9397,4658.2,4657.9,2.25407953]
[1755241680903,0.95086281,4658.1,4655.1,0.2586]
[1755241681116,3.0,4657.9,4656.9,0.1072]
[1755241681316,0.1072,4657.6,4657.1,2.1472415]
[1755241681521,0.9397,4657.5,4657.1,2.1472415]
[1755241681744,0.9397,4657.4,4657.1,2.1472415]
[1755241682053,0.9397,4657.3,4657.1,2.1472415]
[1755241682352,0.9397,4657.3,4657.2,2.14721291]
[1755241682648,0.9397,4657.3,4656.9,0.1072]
[1755241683049,0.9397,4657.3,4657.1,2.14725269]
[1755241683346,0.9,4657.8,4657.7,2.14698241]
[1755241683757,0.4727,4658.2,4657.7,2.14698241]
[1755241684120,0.4727,4658.2,4657.4,3.288]
[1755241684359,0.4727,4658.2,4657.7,0.1072]
[1755241684511,0.4727,4658.1,4657.8,2.14693632]
[1755241684712,0.4727,4658.0,4657.8,2.14693632]
[1755241685459,0.1072,4658.3,4657.7,0.1072]
[1755241685460,0.9397,4657.9,4657.7,0.1072]
[1755241685666,0.5742,4657.8,4657.1,2.14723439]
[1755241685951,1.0469,4657.8,4657.1,2.14723439]
[1755241686150,0.1072,4657.8,4657.1,2.14723439]
[1755241686356,0.9397,4657.7,4656.9,0.1072]
[1755241686561,3.0,4657.9,4657.1,2.14724844]
[1755241686562,0.1072,4657.5,4657.1,2.14724844]
[1755241686712,0.9397,4657.4,4657.1,2.14724844]
[1755241686913,0.1072,4657.5,4656.9,0.12867351]
[1755241687131,0.1072,4657.5,4657.4,2.14712071]
[1755241687416,0.1072,4657.5,4656.9,0.66370998]
[1755241687617,0.1072,4657.5,4657.4,2.14712071]
[1755241687836,0.4727,4657.9,4657.6,2.14701003]
[1755241688041,3.1072,4658.0,4657.5,2.14707153]
[1755241688346,0.4727,4657.8,4657.5,2.14707153]
[1755241688553,0.4727,4657.8,4657.3,0.1072]
[1755241688916,0.4727,4657.8,4657.5,2.14703514]
[1755241689248,0.1072,4658.0,4657.9,2.14689022]
[1755241689434,0.1072,4658.2,4657.9,2.14689022]
[1755241689848,0.4727,4658.1,4657.9,2.14689022]
[1755241690046,0.4727,4658.1,4657.7,2.14698241]
[1755241690262,0.4727,4658.0,4657.7,2.14698241]
[1755241690847,0.4727,4658.0,4657.8,2.14693372]
[1755241691149,0.9397,4657.9,4657.6,0.1072]
[1755241691327,0.9397,4657.9,4657.2,2.14716841]
[1755241691527,0.1072,4657.7,4657.2,2.14721035]
[1755241692049,0.1072,4657.7,4657.1,0.1072]
[1755241692050,0.9397,4657.6,4657.1,0.1072]
[1755241692253,0.4727,4658.1,4657.3,2.14714698]
[1755241692432,0.1072,4658.0,4657.3,2.14714698]
[1755241693153,0.1072,4658.0,4657.7,2.14697008]
[1755241693352,3.4727,4658.1,4657.8,2.14693565]
[1755241693727,3.9397,4658.1,4657.8,2.14693565]
[1755241694055,3.9397,4658.1,4657.7,2.14698195]
[1755241694262,0.4727,4658.0,4657.8,2.14692589]
[1755241694758,3.0,4658.1,4657.8,2.14692589]
[1755241694960,0.1072,4658.2,4657.5,0.1072]
[1755241695159,3.5799,4658.5,4658.1,2.14676027]
[1755241696243,0.1072,4658.5,4657.9,0.1072]
[1755241696451,0.1072,4658.5,4658.0,0.02146844]
[1755241696661,0.002,4658.6,4658.5,2.14661371]
[1755241698290,0.9417,4658.6,4658.3,2.14666053]
[1755241699162,0.002,4658.6,4658.5,2.14661371]
[1755241707484,0.002,4658.6,4658.5,2.16807984]
[1755241708101,0.002,4658.6,4658.5,2.69661371]
[1755241708654,0.002,4658.6,4658.5,2.80381371]
[1755241709086,0.002,4659.1,4659.0,2.14638334]
[1755241709288,0.002,4659.1,4659.0,5.43438334]
[1755241709460,0.002,4659.1,4659.0,5.54158334]
[1755241710261,0.002,4659.1,4659.0,2.25358334]
[1755241710262,0.4568,4659.1,4659.0,2.25358334]
[1755241710568,0.002,4659.1,4659.0,5.54158334]
[1755241710769,0.002,4659.1,4659.0,6.31038702]
[1755241711678,0.4568,4659.1,4659.0,6.31038702]
[1755241711883,0.002,4659.1,4659.0,6.31038702]
[1755241714961,0.002,4659.1,4659.0,3.02238702]
[1755241715161,0.002,4659.1,4659.0,6.30938702]
[1755241715985,0.002,4659.1,4659.0,6.85938702]
[1755241716409,0.002,4659.1,4659.0,6.30938702]
[1755241717286,0.4568,4659.1,4659.0,3.02238702]
[1755241717473,0.9221,4659.1,4659.0,2.25358334]
[1755241717676,0.9221,4659.1,4659.0,5.54058334]
[1755241719676,0.9221,4659.1,4659.0,2.25358334]
[1755241720382,0.9221,4659.1,4659.0,2.14638334]
[1755241722509,0.002,4659.1,4659.0,2.14638334]
[1755241723302,0.002,4659.1,4659.0,5.43338334]
[1755241724309,0.4568,4659.1,4659.0,5.43338334]
[1755241724472,0.9221,4659.1,4659.0,5.43338334]
[1755241725192,0.4568,4659.1,4659.0,5.43338334]
[1755241725711,0.9221,4659.1,4659.0,5.43338334]
[1755241726711,0.4568,4659.1,4659.0,5.43338334]
[1755241727309,0.002,4659.1,4659.0,3.02228702]
[1755241727514,0.002,4659.1,4659.0,6.30928702]
[1755241732623,0.4621,4659.1,4659.0,0.1072]
[1755241732780,0.9583,4659.1,4659.0,0.1072]
[1755241732981,0.9583,4659.1,4658.6,0.001]
[1755241733182,0.9563,4659.0,4658.6,0.001]
[1755241733400,0.9563,4659.0,4658.7,2.14647715]
[1755241733581,0.9563,4658.9,4658.6,0.001]
[1755241733799,2.14834774,4659.1,4658.6,0.001]
[1755241733800,0.1072,4658.7,4658.6,0.001]
[1755241734227,1.9635,4658.7,4658.6,0.001]
[1755241734920,4.11002156,4658.7,4658.6,0.001]
[1755241735916,1.9635,4658.7,4658.6,0.001]
[1755241740454,4.11002156,4658.7,4658.6,0.001]
[1755241740945,1.9635,4658.7,4658.6,0.001]
[1755241741851,1.4673,4658.7,4658.6,0.001]
[1755241742057,1.9635,4658.7,4658.6,0.001]
[1755241743049,1.4673,4658.7,4658.6,0.001]
[1755241743448,1.0072,4658.7,4658.6,0.001]
[1755241743658,1.4673,4658.7,4658.6,0.001]
[1755241744257,1.9635,4658.7,4658.6,0.001]
[1755241744454,1.4673,4658.7,4658.6,0.001]
[1755241745060,0.5673,4658.7,4658.6,0.001]
[1755241746658,1.4673,4658.7,4658.6,0.001]
[1755241746857,1.9635,4658.7,4658.6,0.001]
[1755241747971,0.9,4658.7,4658.6,0.001]
[1755241748269,6.3942,4658.9,4658.6,0.001]
[1755241748731,0.4601,4658.8,4658.6,0.001]
[1755241748938,0.1072,4658.9,4658.6,0.001]
[1755241749286,0.002,4659.0,4658.7,2.14652156]
[1755241749568,0.002,4659.0,4658.9,2.14642941]
[1755241749859,0.002,4659.0,4658.9,2.69374451]
[1755241750050,0.002,4659.0,4658.9,3.23764451]
[1755241750250,0.002,4659.0,4658.9,3.78764451]